bitfinex/quotes_ETHUSD_20250331
["timestamp","ask_amount","ask_price","bid_price","bid_amount"]
[1743389286091,3.8236,1821.8,1821.5,5.48988]
[1743389287815,9.31268,1821.8,1821.4,5.49028]
[1743389288023,5.4894,1821.7,1821.3,11.79825]
[1743389288320,11.38783,1821.8,1821.3,11.79825]
[1743389288520,11.38783,1821.8,1821.4,5.49021]
[1743389289199,16.87714,1821.8,1821.4,5.49021]
[1743389289402,1.687714,1821.7,1821.4,5.49021]
[1743389289594,3.0,1821.8,1821.5,5.48992]
[1743389289795,0.8236,1822.0,1821.6,6.30686]
[1743389290001,6.31214,1822.0,1821.6,6.30679]
[1743389290530,6.31214,1822.0,1821.6,11.79635]
[1743389290740,6.31214,1822.0,1821.6,6.30679]
[1743389290936,3.8236,1822.0,1821.6,6.30679]
[1743389291230,5.95,1822.1,1821.8,5.48903]
[1743389291454,7.724965,1822.1,1821.8,5.48903]
[1743389291789,6.7736,1822.4,1821.9,5.48877]
[1743389292048,5.95,1822.4,1821.9,5.48877]
[1743389292206,5.95,1822.4,1822.3,5.48757]
[1743389292412,6.7736,1822.6,1822.3,5.48757]
[1743389292589,5.95,1822.6,1822.3,5.48757]
[1743389292822,12.2597,1822.8,1822.4,5.48712]
[1743389293144,14.034265,1822.8,1822.4,5.48712]
[1743389293450,6.7736,1822.8,1822.5,5.48674]
[1743389293817,6.7736,1822.8,1822.6,5.48664]
[1743389294018,5.95,1822.8,1822.6,5.48664]
[1743389294342,5.95,1822.8,1822.7,5.48636]
[1743389294719,0.8015,1823.0,1822.7,5.48636]
[1743389295345,5.95,1823.1,1822.8,5.48588]
[1743389297348,5.95,1823.1,1822.9,5.48574]
[1743389297542,5.95,1823.1,1823.0,5.48546]
[1743389297738,0.8015,1823.4,1823.2,5.48471]
[1743389297940,0.8015,1823.4,1823.1,5.48511]
[1743389298126,0.8015,1823.4,1823.1,5.48493]
[1743389298333,5.95,1823.5,1823.2,5.48473]
[1743389298555,7.173539,1823.5,1823.2,5.48473]
[1743389298925,5.95,1823.5,1823.2,6.25553]
[1743389299124,5.95,1823.5,1823.2,11.74013]
[1743389299425,5.95,1823.5,1823.3,5.48451]
[1743389300264,5.95,1823.5,1823.4,5.48426]
[1743389300465,0.8015,1823.8,1823.4,5.48426]
[1743389300765,0.8015,1823.8,1823.3,5.48451]
[1743389300766,7.36242739,1823.8,1823.3,5.48443]
[1743389301164,5.48401,1823.5,1823.1,5.48499]
[1743389301540,5.48394,1823.6,1823.1,5.48499]
[1743389301952,5.48425,1823.5,1823.1,5.48513]
[1743389302159,5.48424,1823.5,1823.0,6.25626]
[1743389302366,0.548424,1823.4,1823.0,6.25626]
[1743389302539,6.032884,1823.4,1822.9,5.48576]
[1743389302733,11.517414,1823.4,1822.9,10.97152]
[1743389302975,0.548424,1823.4,1823.1,6.25578]
[1743389303155,6.032834,1823.4,1822.9,5.48572]
[1743389303354,6.032834,1823.4,1822.9,5.48557]
[1743389303667,6.0878734,1823.3,1822.9,5.48557]
[1743389303964,0.6032834,1823.3,1823.0,5.48522]
[1743389304165,0.548424,1823.4,1823.0,5.48522]
[1743389304347,6.032714,1823.4,1823.0,5.48522]
[1743389304667,5.4846,1823.3,1822.8,17.22251]
[1743389304874,0.8015,1823.2,1822.8,17.22251]
[1743389305565,0.8015,1823.2,1822.8,11.74251]
[1743389305769,1.43011,1823.2,1822.8,11.74251]
[1743389305941,6.91497,1823.2,1822.7,5.48634]
[1743389306137,5.48518,1823.1,1822.7,5.48634]
[1743389306644,5.48548,1823.0,1822.6,6.2573]
[1743389306844,5.48548,1823.0,1822.6,5.4865]
[1743389307055,1.350048,1822.9,1822.6,5.4865]
[1743389307235,12.786008,1822.9,1822.4,7.33600925]
[1743389307441,7.300048,1822.9,1822.6,5.48666]
[1743389307936,5.95,1822.9,1822.7,5.48623]
[1743389308364,5.95,1822.9,1822.8,5.48606]
[1743389308566,5.95,1822.9,1822.7,5.48623]
[1743389309342,5.95,1822.9,1822.6,5.48665]
[1743389309553,5.95,1822.9,1822.6,5.48644]
[1743389309973,5.95,1822.9,1822.7,14.5]
[1743389310344,5.95,1822.9,1822.7,5.48634]
[1743389310565,5.95,1822.9,1822.8,5.48606]
[1743389312476,6.23918,1823.3,1822.9,5.48573]
[1743389312639,13.491374,1823.3,1822.8,10.97212]
[1743389313272,5.48487,1823.2,1822.8,5.48606]
[1743389313464,5.48487,1823.2,1822.8,10.97212]
[1743389313868,13.491324,1823.3,1822.8,10.97212]
[1743389314379,13.491324,1823.3,1822.8,5.48606]
[1743389314380,5.48492,1823.2,1822.8,5.48606]
[1743389315279,13.491384,1823.3,1822.8,5.48606]
[1743389315488,5.48489,1823.2,1822.8,5.48606]
[1743389315976,1.3491414,1823.2,1822.9,5.48574]
[1743389316176,8.006654,1823.3,1822.8,5.48591]
[1743389316365,5.48497,1823.2,1822.8,5.48591]
[1743389316683,5.48559,1823.0,1822.7,14.5]
[1743389316846,5.48559,1823.0,1822.6,5.4866]
[1743389317571,5.4859,1822.9,1822.5,6.24508]
[1743389317773,5.48652,1822.7,1822.3,37.91385]
[1743389317975,5.48652,1822.7,1822.2,1.09859417]
[1743389317976,6.24137,1822.6,1822.2,1.09859417]
[1743389318156,6.24137,1822.6,1822.3,14.5]
[1743389318352,0.7545,1822.6,1822.3,19.98755]
[1743389318780,0.7545,1822.6,1822.3,5.48755]
[1743389318995,0.7545,1822.6,1822.2,5.48766]
[1743389319290,0.7545,1822.6,1822.3,5.48752]
[1743389319585,6.24116,1822.6,1822.2,19.98766]
[1743389319959,6.24116,1822.6,1822.2,25.47531]
[1743389320267,0.7545,1822.6,1822.3,5.48747]
[1743389322048,5.95,1822.8,1822.6,5.48643]
[1743389322255,5.95,1822.8,1822.7,5.48636]
[1743389322468,6.7045,1823.1,1822.8,10.97181]
[1743389322783,5.95,1823.1,1822.9,19.98575]
[1743389322997,8.021544,1823.3,1822.9,19.98575]
[1743389323161,8.021544,1823.3,1822.9,25.47129]
[1743389323359,8.021544,1823.3,1822.9,19.98554]
[1743389323562,8.021544,1823.3,1822.9,25.47118]
[1743389323893,8.021544,1823.3,1822.9,10.97114]
[1743389324271,8.021544,1823.3,1822.9,5.48554]
[1743389325599,2.536944,1823.3,1823.0,5.4854]
[1743389325778,0.7696,1823.3,1823.0,5.4854]
[1743389325979,0.7696,1823.3,1823.1,5.48486]
[1743389326375,0.7696,1823.3,1823.0,5.48545]
[1743389327268,0.7696,1823.3,1823.0,10.9707]
[1743389327894,0.7696,1823.3,1823.0,5.48525]
[1743389328670,0.7696,1823.3,1822.9,5.48574]
[1743389328894,5.48497,1823.2,1822.8,5.48605]
[1743389329100,10.47458,1823.3,1822.9,5.48575]
[1743389329867,5.48486,1823.2,1822.6,11.73879]
[1743389330202,5.48566,1823.0,1822.6,11.73874]
[1743389330568,5.48516,1823.1,1822.7,5.48636]
[1743389330765,7.5218792,1823.1,1822.7,5.48636]
[1743389331169,13.0072692,1823.1,1822.7,5.48636]
[1743389331597,7.5218792,1823.1,1822.6,11.73874]
[1743389331802,7.5218792,1823.1,1822.6,5.478]
[1743389331803,5.48588,1822.9,1822.6,5.478]
[1743389331989,11.74153,1822.9,1822.6,5.478]
[1743389332186,8.024633,1822.9,1822.5,5.48695]
[1743389332402,2.538753,1822.9,1822.5,5.48681]
[1743389332566,0.7696,1822.9,1822.6,5.48651]
[1743389332767,0.7696,1822.9,1822.6,19.98651]
[1743389333197,5.95,1823.0,1822.6,19.98644]
[1743389333500,5.95,1823.0,1822.7,5.48632]
[1743389334000,11.43558,1823.0,1822.6,19.98659]
[1743389334172,1.143558,1822.9,1822.6,19.98659]
[1743389334503,6.629348,1822.9,1822.6,14.5]
[1743389334708,0.7696,1822.8,1822.4,49.98004603]
[1743389334996,0.7696,1822.8,1822.4,43.40836]
[1743389335167,6.25566,1822.8,1822.5,14.5]
[1743389335598,6.25566,1822.8,1822.4,43.40836]
[1743389336101,6.25566,1822.8,1822.4,26.23936]
[1743389336603,5.48656,1822.7,1822.4,14.5]
[1743389336790,5.48693,1822.6,1822.1,10.97611]
[1743389337000,11.43693,1822.6,1822.2,5.48774]
[1743389337177,11.43693,1822.6,1822.2,19.98774]
[1743389337504,5.95,1822.6,1822.2,19.98774]
[1743389337674,5.95,1822.6,1822.2,5.48774]
[1743389338021,11.43669,1822.6,1822.2,5.48774]
[1743389338190,5.95,1822.6,1822.2,10.97549]
[1743389338391,5.95,1822.6,1822.2,5.48774]
[1743389338591,11.4367,1822.6,1822.2,5.48774]
[1743389339101,13.205967,1822.6,1822.2,5.48774]
[1743389340428,7.719267,1822.6,1822.3,5.48754]
[1743389340724,7.848158,1822.9,1822.5,5.48696]
[1743389340892,7.848158,1822.9,1822.5,10.97381]
[1743389341091,7.848158,1822.9,1822.6,5.48662]
[1743389341319,7.848158,1822.9,1822.5,5.48685]
[1743389341914,6.7046,1822.9,1822.5,5.48674]
[1743389342088,6.7046,1822.9,1822.3,6.2861]
[1743389342089,5.95,1822.9,1822.6,5.48637]
[1743389342296,5.95,1822.9,1822.7,5.48619]
[1743389342630,5.95,1822.9,1822.6,5.48637]
[1743389344736,6.7046,1822.9,1822.2,0.8081]
[1743389344911,6.24137,1822.6,1822.1,10.96597]
[1743389345228,6.24137,1822.6,1822.2,5.48765]
[1743389345229,6.7046,1822.6,1822.2,5.48765]
[1743389345407,6.7046,1822.6,1822.1,10.96597]
[1743389345408,12.19144,1822.6,1822.1,10.96597]
[1743389345603,12.19144,1822.6,1822.1,10.96594]
[1743389345797,5.487,1822.5,1822.1,10.96594]
[1743389346333,6.7046,1822.6,1822.2,5.48777]
[1743389346810,12.19128,1822.6,1822.2,5.48777]
[1743389346996,17.6782,1822.6,1822.1,10.96615]
[1743389347334,5.48697,1822.5,1822.1,10.96615]
[1743389348208,5.48697,1822.5,1822.1,5.478]
[1743389348209,10.97423,1822.5,1822.1,5.478]
[1743389348414,0.7546,1822.4,1822.1,5.478]
[1743389349001,0.7546,1822.4,1822.1,10.96613]
[1743389349526,0.7546,1822.4,1822.1,5.48813]
[1743389349696,0.7546,1822.4,1822.1,10.97614]
[1743389349899,0.7546,1822.4,1822.1,5.48801]
[1743389350300,0.7546,1822.4,1822.1,10.97598]
[1743389350495,0.7546,1822.4,1822.2,5.48779]
[1743389350739,6.7046,1822.4,1822.2,5.48779]
[1743389351042,6.7046,1822.4,1822.1,5.48797]
[1743389351243,6.7046,1822.4,1822.1,10.97593]
[1743389351401,6.7046,1822.4,1822.1,5.48796]
[1743389351831,6.7046,1822.4,1822.1,10.97598]
[1743389352034,6.7046,1822.4,1822.2,5.48773]
[1743389352334,5.95,1822.4,1822.3,5.48757]
[1743389352551,5.95,1822.7,1822.6,5.48666]
[1743389352865,5.95,1822.7,1822.5,5.48686]
[1743389353158,5.95,1822.7,1822.5,10.97365]
[1743389353319,5.95,1822.7,1822.5,5.48679]
[1743389353848,5.95,1822.7,1822.6,5.48666]
[1743389354915,5.95,1822.7,1822.5,5.48679]
[1743389355649,5.95,1822.7,1822.4,5.48725]
[1743389355858,0.8,1822.6,1822.2,5.48767]
[1743389356046,12.23681,1822.6,1822.1,6.61321637]
[1743389356251,12.23697,1822.5,1821.9,37.15656]
[1743389356446,12.23697,1822.5,1822.0,5.48825]
[1743389357238,17.7242,1822.5,1822.0,5.48825]
[1743389357443,1.77242,1822.4,1822.0,5.48825]
[1743389357834,0.8,1822.3,1821.9,37.15676]
[1743389358352,0.8,1822.3,1822.0,5.4884]
[1743389359540,0.8,1822.3,1822.0,10.97675]
[1743389359741,0.8,1822.3,1822.0,5.48835]
[1743389360550,5.95,1822.5,1822.0,0.8307]
[1743389360860,5.95,1822.5,1822.4,5.48726]
[1743389361661,5.95,1822.5,1822.3,10.97492]
[1743389362228,5.95,1822.5,1822.4,5.48726]
[1743389365233,0.8,1822.7,1822.4,5.48726]
[1743389365460,1.475,1822.7,1822.4,5.48708]
[1743389365763,0.8,1822.9,1822.7,5.48622]
[1743389366840,5.95,1823.1,1822.8,5.48606]
[1743389367072,6.75,1823.1,1822.8,5.48606]
[1743389368265,6.75,1823.1,1822.7,6.31692]
[1743389368468,0.675,1823.0,1822.6,5.4866]
[1743389369146,6.16054,1823.0,1822.6,5.4866]
[1743389369332,0.675,1823.0,1822.6,5.4866]
[1743389369845,0.7537,1822.9,1822.5,5.4867]
[1743389370043,6.23946,1822.9,1822.4,5.48726]
[1743389370367,6.23946,1822.9,1822.3,10.97512]
[1743389370368,0.7537,1822.7,1822.3,10.97512]
[1743389370663,6.7037,1822.7,1822.3,10.97512]
[1743389370849,6.7037,1822.7,1822.4,5.48725]
[1743389372263,6.7037,1822.7,1822.3,5.48756]
[1743389372264,12.19024,1822.7,1822.3,5.48756]
[1743389372468,0.8128,1822.6,1822.2,5.48786]
[1743389372768,0.8128,1822.6,1822.2,10.97551]
[1743389373170,0.8128,1822.6,1822.2,12.08545406]
[1743389373374,0.8128,1822.6,1822.3,5.48753]
[1743389374263,0.8128,1822.6,1822.1,5.48817]
[1743389374465,0.8128,1822.6,1822.4,5.48706]
[1743389375140,0.8128,1822.6,1822.3,5.48755]
[1743389375338,1.48908,1822.6,1822.3,5.48755]
[1743389376045,0.8128,1822.6,1822.3,5.48738]
[1743389376248,0.8128,1822.6,1822.4,5.48721]
[1743389377444,0.8128,1822.6,1822.3,5.48738]
[1743389377841,6.29957,1822.6,1822.2,5.48786]
[1743389378047,0.8128,1822.6,1822.2,10.97554]
[1743389378375,0.8128,1822.6,1822.3,5.48743]
[1743389378578,0.8128,1822.6,1822.4,5.48713]
[1743389378880,0.8128,1822.6,1822.4,5.48712]
[1743389379078,5.95,1822.7,1822.4,5.48712]
[1743389379375,6.16065,1823.0,1822.7,5.48616]
[1743389379376,0.8128,1823.0,1822.7,5.48616]
[1743389379574,0.8128,1823.0,1822.8,5.48587]
[1743389380475,5.95,1823.3,1823.2,5.48486]
[1743389380692,0.8128,1823.7,1823.5,5.48395]
[1743389380851,0.8128,1823.7,1823.6,5.48365]
[1743389381174,5.95,1823.8,1823.4,10.9682]
[1743389381379,6.63178,1823.8,1823.5,5.48395]
[1743389381689,6.63178,1823.8,1823.5,10.9679]
[1743389381849,6.63178,1823.8,1823.4,5.48425]
[1743389382052,12.11499,1823.8,1823.4,5.48425]
[1743389382275,6.63178,1823.8,1823.4,5.48425]
[1743389382665,6.63178,1823.8,1823.4,5.48401]
[1743389382870,6.63178,1823.8,1823.6,5.48363]
[1743389383276,6.63178,1823.8,1823.5,5.48391]
[1743389383476,6.63178,1823.8,1823.5,10.96774]
[1743389383673,6.63178,1823.8,1823.5,5.48383]
[1743389384194,6.63178,1823.8,1823.5,10.96766]
[1743389384376,5.95,1823.8,1823.6,5.48358]
[1743389384683,5.95,1823.8,1823.5,5.48383]
[1743389384999,5.95,1823.8,1823.5,5.48395]
[1743389387087,0.055,1823.9,1823.8,5.48305]
[1743389388208,7.3862,1823.9,1823.3,5.48445]
[1743389388360,0.7807,1823.5,1823.1,5.48496]
[1743389388564,6.7307,1823.5,1823.1,5.48496]
[1743389388786,5.4845,1823.4,1822.9,5.48554]
[1743389389170,0.7807,1823.3,1822.8,6.27289]
[1743389389377,3.7807,1823.3,1822.8,5.48589]
[1743389389560,3.7807,1823.3,1823.0,5.48517]
[1743389389760,3.7807,1823.3,1822.9,5.4857]
[1743389390078,3.7807,1823.3,1822.9,5.48563]
[1743389390466,3.7807,1823.3,1822.9,5.48551]
[1743389390810,3.7807,1823.3,1823.0,5.48533]
[1743389390961,3.7807,1823.3,1822.9,5.48551]
[1743389391164,10.740305,1823.3,1822.9,5.48551]
[1743389391357,10.740305,1823.3,1822.7,5.48618]
[1743389391701,10.97022,1823.2,1822.7,16.44742]
[1743389391860,10.97022,1823.2,1822.7,5.48618]
[1743389392061,5.48555,1823.0,1822.6,5.48662]
[1743389392278,6.26668,1822.9,1822.4,11.74921]
[1743389392593,0.7807,1822.9,1822.5,5.48695]
[1743389392885,6.26661,1822.9,1822.4,11.74923]
[1743389393087,6.26661,1822.9,1822.4,10.96223]
[1743389393389,3.7807,1822.9,1822.5,5.48679]
[1743389393585,4.7621875,1822.9,1822.5,5.48679]
[1743389393774,1.7621875,1822.9,1822.4,10.96205]
[1743389393978,3.7807,1822.9,1822.5,5.48679]
[1743389394183,3.7807,1822.9,1822.6,5.48662]
[1743389394388,3.7807,1822.9,1822.5,5.48679]
[1743389394993,9.26647,1822.9,1822.5,5.48679]
[1743389395285,5.4861,1822.8,1822.3,37.15028]
[1743389395477,0.54861,1822.7,1822.3,37.15028]
[1743389395989,0.54861,1822.7,1822.4,5.48714]
[1743389396192,20.70249,1822.9,1822.4,5.48714]
[1743389396491,5.48607,1822.8,1822.4,5.48714]
[1743389397190,5.90550217,1822.8,1822.4,5.48714]
[1743389397486,0.41943217,1822.8,1822.4,10.97428]
[1743389397696,5.48607,1822.8,1822.4,5.48714]
[1743389397992,7.556324,1822.8,1822.4,5.48714]
[1743389398183,2.070254,1822.8,1822.4,10.97428]
[1743389398493,2.070254,1822.8,1822.4,5.48714]
[1743389398694,7.556394,1822.8,1822.3,38.26376682]
[1743389398894,0.8304,1822.6,1822.3,37.15056]
[1743389399093,1.46209,1822.6,1822.3,37.15056]
[1743389399795,1.46209,1822.6,1822.3,31.663]
[1743389399991,1.46209,1822.6,1822.2,10.96286]
[1743389399992,6.94889,1822.6,1822.2,5.48786]
[1743389400396,1.46209,1822.6,1822.3,5.48738]
[1743389400597,8.850654,1822.8,1822.2,6.25808]
[1743389400800,6.7804,1822.8,1822.5,5.48683]
[1743389401000,5.95,1822.8,1822.7,5.48636]
[1743389401189,5.95,1822.8,1822.6,5.48666]
[1743389401523,0.8304,1822.6,1822.3,5.48757]
[1743389401812,1.462078,1822.6,1822.4,5.48726]
[1743389402020,0.8304,1822.6,1822.4,5.48726]
[1743389402228,0.8304,1822.6,1822.3,10.97514]
[1743389402530,0.8304,1822.6,1822.3,5.48757]
[1743389402823,0.8304,1822.6,1822.2,12.08759703]
[1743389403127,7.18824314,1822.8,1822.5,5.48693]
[1743389403274,0.71882431,1822.7,1822.5,5.48693]
[1743389403477,0.71882431,1822.7,1822.4,5.48719]
[1743389403673,6.7804,1822.8,1822.5,5.48685]
[1743389404812,6.7804,1822.8,1822.5,10.97361]
[1743389404986,6.7804,1822.8,1822.5,5.48676]
[1743389405996,12.26661,1822.8,1822.4,5.48719]
[1743389406191,6.7804,1822.8,1822.4,10.97427]
[1743389406393,6.7804,1822.8,1822.5,5.48681]
[1743389407317,6.7804,1822.8,1822.4,5.48726]
[1743389407517,6.7804,1822.8,1822.4,10.9743]
[1743389407718,6.7804,1822.8,1822.4,10.97412]
[1743389407920,5.48653,1822.7,1822.3,6.25785]
[1743389408093,13.493369,1822.8,1822.3,10.97489]
[1743389408413,13.493369,1822.8,1822.4,5.48707]
[1743389408414,8.007019,1822.8,1822.4,5.48707]
[1743389408613,5.95,1822.8,1822.6,5.48648]
[1743389408792,5.95,1822.8,1822.7,5.48636]
[1743389409193,3.0,1823.1,1822.9,5.48576]
[1743389409416,3.0,1823.1,1822.7,0.7703]
[1743389409417,3.0,1823.1,1822.8,5.48595]
[1743389410118,6.31609,1823.0,1822.5,10.96181]
[1743389410324,5.48586,1822.9,1822.5,16.4486]
[1743389410492,5.48586,1822.9,1822.5,10.96179]
[1743389410687,6.31609,1823.0,1822.5,16.44854]
[1743389410894,6.31609,1823.0,1822.6,5.48642]
[1743389411123,4.526533,1823.1,1822.7,5.48636]
[1743389411296,4.526533,1823.1,1822.5,10.96189]
[1743389411297,0.8304,1822.9,1822.5,10.96189]
[1743389411501,6.31631,1822.9,1822.5,10.96189]
[1743389412220,5.48618,1822.8,1822.5,5.475]
[1743389412411,0.548618,1822.7,1822.5,5.475]
[1743389412610,0.548618,1822.7,1822.2,0.7703]
[1743389412812,0.8304,1822.6,1822.3,10.96239]
[1743389413011,0.8304,1822.6,1822.4,5.48723]
[1743389413218,0.8304,1822.6,1822.3,16.44982]
[1743389413726,0.8304,1822.6,1822.4,5.48724]
[1743389413901,5.4871,1822.5,1822.1,5.48805]
[1743389414094,6.31722,1822.6,1822.2,10.96285]
[1743389414294,0.631722,1822.5,1822.2,10.96285]
[1743389415219,12.22202,1822.8,1822.2,5.475]
[1743389415410,17.70834,1822.8,1822.3,5.48744]
[1743389416627,5.48639,1822.7,1822.3,5.48744]
[1743389417726,5.48673,1822.6,1822.2,16.4504]
[1743389417929,0.7859,1822.5,1822.2,10.96268]
[1743389418325,0.7859,1822.5,1822.2,16.45034]
[1743389418529,5.48637,1822.7,1822.3,10.97488]
[1743389418530,6.27227,1822.7,1822.3,10.97488]
[1743389418726,6.27227,1822.7,1822.2,10.96285]
[1743389418932,5.48671,1822.6,1822.2,10.96285]
[1743389419301,5.48671,1822.6,1822.3,5.48756]
[1743389419513,6.113971,1822.6,1822.2,10.97538]
[1743389420135,6.113971,1822.6,1822.2,5.48765]
[1743389420310,6.113971,1822.6,1822.2,10.97539]
[1743389420506,0.7859,1822.7,1822.2,5.48787]
[1743389420718,6.7359,1822.8,1822.6,5.48666]
[1743389420931,5.95,1822.8,1822.6,5.48666]
[1743389421121,5.95,1822.8,1822.5,10.96195]
[1743389421446,5.95,1822.8,1822.5,16.4487]
[1743389421954,7.472167,1822.8,1822.5,10.96175]
[1743389422959,7.472167,1822.8,1822.6,5.48661]
[1743389423153,0.7859,1823.1,1822.9,5.48559]
[1743389423436,5.95,1823.4,1823.1,0.8141]
[1743389423656,0.7859,1823.6,1823.3,5.48444]
[1743389423825,0.67359,1823.6,1823.4,5.48406]
[1743389424027,5.95,1823.7,1823.4,5.48406]
[1743389424244,5.48383,1823.6,1823.2,10.95972]
[1743389424447,0.7859,1823.5,1823.2,10.95972]
[1743389424807,5.48439,1823.4,1823.0,6.29955]
[1743389425013,1.412861,1823.5,1823.1,5.48515]
[1743389425212,1.412861,1823.5,1823.2,5.48465]
[1743389425417,6.7359,1823.7,1823.3,5.48454]
[1743389425615,5.95164515,1823.9,1823.5,5.48395]
[1743389425616,0.8409,1823.9,1823.5,5.48395]
[1743389425861,0.8409,1823.9,1823.4,5.475]
[1743389425862,6.32377,1823.9,1823.4,5.475]
[1743389426014,5.48318,1823.8,1823.4,10.95912]
[1743389426210,6.32377,1823.9,1823.4,10.95903]
[1743389426458,0.632377,1823.8,1823.4,10.95903]
[1743389427414,0.055,1823.9,1823.5,5.48395]
[1743389427743,0.055,1823.9,1823.8,5.48305]
[1743389427929,0.055,1823.9,1823.8,11.75485]
[1743389428730,0.055,1823.9,1823.8,43.97385]
[1743389430750,0.055,1823.9,1823.8,58.47385]
[1743389432645,0.055,1823.9,1823.8,43.97385]
[1743389433045,0.055,1823.9,1823.8,43.42385]
[1743389433253,0.055,1823.9,1823.8,43.42185]
[1743389433419,0.055,1823.9,1823.8,46.97185]
[1743389434121,0.055,1823.9,1823.8,61.47185]
[1743389434318,0.055,1823.9,1823.8,52.99985]
[1743389434518,0.055,1823.9,1823.8,43.42185]
[1743389435046,0.055,1823.9,1823.8,44.53293668]
[1743389436748,0.055,1823.9,1823.8,48.08293668]
[1743389438326,0.055,1823.9,1823.8,48.08193668]
[1743389438549,0.055,1823.9,1823.8,62.58193668]
[1743389443645,1e-05,1823.9,1823.8,62.58193668]
[1743389443854,1e-05,1824.9,1824.8,5.48005]
[1743389444028,1e-05,1824.9,1824.8,11.74515]
[1743389444228,0.05,1826.9,1825.9,0.7951]
[1743389444533,0.05,1826.9,1826.3,0.8132]
[1743389444857,0.05,1826.9,1826.3,5.622]
[1743389445030,5.52377,1826.9,1826.3,5.622]
[1743389445359,0.05,1826.9,1826.4,3.8132]
[1743389445653,0.05,1826.9,1826.5,15.05]
[1743389445875,5.47433,1826.8,1826.5,14.5]
[1743389446234,0.05,1826.9,1826.5,14.5]
[1743389446630,5.47449,1826.7,1826.5,14.5]
[1743389446827,5.47424,1826.8,1826.2,5.697]
[1743389447026,10.94852,1826.8,1826.2,5.697]
[1743389447233,5.47424,1826.8,1826.3,14.5]
[1743389447657,5.4745,1826.7,1826.2,5.697]
[1743389447859,10.9979,1826.9,1826.2,11.17284]
[1743389448034,1.09979,1826.8,1826.2,25.67284]
[1743389448434,5.47467,1826.6,1826.3,5.726]
[1743389448743,5.47467,1826.6,1826.1,6.13364036]
[1743389448926,5.47495,1826.5,1826.1,20.63364036]
[1743389449134,10.95159,1826.3,1825.8,31.642]
[1743389449330,1.095159,1826.2,1825.8,31.642]
[1743389449563,5.47631,1826.1,1825.8,31.642]
[1743389449867,0.7963,1826.0,1825.3,0.42203903]
[1743389450053,5.47752,1825.7,1825.2,5.744]
[1743389450660,8.47678,1825.9,1825.2,5.744]
[1743389450862,6.324818,1825.8,1825.2,5.744]
[1743389451158,3.0,1825.9,1825.2,5.744]
[1743389451159,3.0,1825.9,1825.3,5.47839]
[1743389451560,8.47676,1825.9,1825.3,5.47839]
[1743389451760,5.47744,1825.7,1825.2,5.744]
[1743389451948,6.27425,1825.5,1825.0,31.63]
[1743389452152,5.47903,1825.2,1824.6,0.8132]
[1743389452362,5.47868,1825.3,1824.7,5.765]
[1743389452529,5.47886,1825.2,1824.8,14.5]
[1743389452735,6.026548,1825.3,1824.8,14.5]
[1743389453159,5.47885,1825.2,1824.8,14.5]
[1743389453662,5.47243,1827.4,1825.9,5.47675]
[1743389453865,5.52078,1827.9,1826.5,0.8132]
[1743389453866,5.47361,1827.0,1826.5,0.8132]
[1743389454078,5.52391,1826.9,1826.6,14.5]
[1743389454251,0.05,1826.9,1826.3,5.47539]
[1743389454435,5.47436,1826.7,1826.1,6.065]
[1743389454641,0.7963,1826.8,1826.1,6.065]
[1743389454642,9.27045,1826.8,1826.2,14.5]
[1743389454872,5.47513,1826.5,1826.1,6.065]
[1743389455174,10.95037,1826.5,1825.8,11.54679]
[1743389455334,5.47513,1826.5,1825.9,14.5]
[1743389455534,0.547513,1826.4,1825.9,14.5]
[1743389455868,5.47495,1826.5,1825.9,19.97649]
[1743389456063,5.47491,1826.6,1825.4,5.47807]
[1743389456064,0.7963,1826.3,1825.4,5.47807]
[1743389456251,0.7963,1825.9,1825.3,43.17053]
[1743389456459,6.27319,1825.9,1825.3,43.17053]
[1743389456653,5.47712,1825.8,1825.3,37.692]
[1743389456872,0.547712,1825.7,1825.1,11.5581]
[1743389457053,5.47764,1825.7,1825.1,5.4791]
[1743389457253,5.47764,1825.7,1825.1,19.9791]
[1743389457652,5.47764,1825.7,1825.1,19.97913]
[1743389457864,5.47764,1825.7,1825.2,5.4788]
[1743389458265,5.47707,1825.8,1825.3,5.4784]
[1743389458470,6.27328,1825.9,1825.3,5.47836]
[1743389458671,6.900608,1825.9,1825.4,5.47819]
[1743389459257,5.95,1826.0,1825.8,5.47705]
[1743389459569,0.7935,1826.2,1825.8,5.47705]
[1743389459778,0.7935,1826.2,1825.8,10.9541]
[1743389459951,0.7935,1826.2,1825.9,5.47671]
[1743389460352,0.7935,1826.2,1826.0,5.47643]
[1743389460557,0.7935,1826.2,1825.9,5.47671]
[1743389460769,0.7935,1826.2,1825.8,5.47701]
[1743389460963,1.420418,1826.2,1825.8,5.47701]
[1743389461284,1.420418,1826.2,1825.8,10.95379]
[1743389461484,1.420418,1826.2,1825.8,10.95369]
[1743389461685,1.420418,1826.2,1825.8,5.47678]
[1743389461896,5.47621,1826.1,1825.6,5.47748]
[1743389462057,5.47659,1826.0,1825.5,11.53192]
[1743389462260,5.47659,1826.0,1825.5,17.0096]
[1743389462486,5.47676,1825.9,1825.5,5.47768]
[1743389462688,5.47676,1825.9,1825.4,5.47824]